{"text_format":"3","workbook":"xlsx","n_sheets":6,"sheets":["סמסטר","נקודות זכות","תקציב","הוצאות חודשיות נטו","הוצאות בסמסטר","ספרים"],"not_rendered":{"defined_names":21},"read":"whole","date_system":"1900"}

{"sheet":"סמסטר","index":0,"n_rows":29,"n_cols":9,"rows_kept":29,"merged":[[2,3,2,4]]}
[null,"מערכת השעות שלי"]
[null,"סמסטר הסתיו"]
[null,null,"שעת התחלה","מרווח זמן",null,"שנה"]
[null,null,"09:00:00",60,"(בדקות)"]
[null,"שעה ","א'","ב'","ג'","ד'","ה'","ו'","ש'"]
[null,{"$f":"שעת_התחלה+TIME(0,(ROW(A1)-1)*מרווח_זמן,0)","v":"09:00:00"},null,"ארוחת בוקר","ארוחת בוקר","ארוחת בוקר","ארוחת בוקר","ארוחת בוקר"]
[null,"10:00:00",null,"עסקים: בניין ב', חדר 256"]
[null,"11:00:00",{"$nulls":4},"פיזיקה: מעבדה \nבניין ג', חדר 309"]
[null,"12:00:00"]
[null,"13:00:00"]
[null,"14:00:00"]
[null,"15:00:00"]
[null,"16:00:00"]
[null,"17:00:00"]
[null,"18:00:00"]
[null,"19:00:00"]
[null,"20:00:00"]
[null,"21:00:00"]
[null,"22:00:00"]
[null,"23:00:00"]
[null,1]
[null,1.0416666666666665]
[null,1.0833333333333335]
[null,1.125]
[null,1.1666666666666665]
[null,1.2083333333333335]
[null,1.25]
[null,1.2916666666666665]
[null,1.3333333333333335]

{"sheet":"נקודות זכות","index":1,"n_rows":17,"n_cols":8,"rows_kept":17}
[null,"בית ספר"]
[null,"כלי תכנון של נקודות זכות"]
[null,"כותרת התואר",{"$f":"שנה","v":"שנה"}]
[null,"התקדמות כוללת",null,"התקדמות כוללת"]
[null,{"$f":"AVERAGE(קורסים[ציון])","v":3.5},{"$f":"IFERROR(TEXT(AVERAGEIF(קורסים[הושלם],\"כן\",קורסים[ציון]),\"0.00\"),\"0.00\")&\" נוכחי GPA\"","v":"3.50 נוכחי GPA"},{"$f":"COUNTIF(קורסים[הושלם],\"כן\")/COUNTA(קורסים[כותרת הקורס])","v":0.6666666666666666},{"$f":"TEXT(COUNTIF(קורסים[הושלם],\"כן\")/COUNTA(קורסים[כותרת הקורס]),\"0%\")&\" השלמה\"","v":"67% השלמה"}]
[null,"הערה: סיכום נקודות הזכות שלהלן מאוכלס באופן אוטומטי בערכים שאתה מזין בטבלת הקורסים להלן"]
[null,"דרישה","סה\"כ נקודות זכות","הושגו","נדרשות"]
[null,"חוג ראשי",{"$f":"IF(SUMIF(קורסים[דרישה],'נקודות זכות'!$B8,קורסים[נקודות זכות])=0,\"0\",SUMIF(קורסים[דרישה],'נקודות זכות'!$B8,קורסים[נקודות זכות]))","v":4},{"$f":"SUMIFS(קורסים[נקודות זכות],קורסים[דרישה],'נקודות זכות'!$B8,קורסים[הושלם],\"כן\")","v":4},{"$f":"SUMIF(קורסים[דרישה],'נקודות זכות'!$B8,קורסים[נקודות זכות])-SUMIFS(קורסים[נקודות זכות],קורסים[דרישה],'נקודות זכות'!$B8,קורסים[הושלם],\"כן\")","v":0}]
[null,"חוג משני",{"$f":"IF(SUMIF(קורסים[דרישה],'נקודות זכות'!$B9,קורסים[נקודות זכות])=0,\"0\",SUMIF(קורסים[דרישה],'נקודות זכות'!$B9,קורסים[נקודות זכות]))","v":3},{"$f":"SUMIFS(קורסים[נקודות זכות],קורסים[דרישה],'נקודות זכות'!$B9,קורסים[הושלם],\"כן\")","v":0},{"$f":"SUMIF(קורסים[דרישה],'נקודות זכות'!$B9,קורסים[נקודות זכות])-SUMIFS(קורסים[נקודות זכות],קורסים[דרישה],'נקודות זכות'!$B9,קורסים[הושלם],\"כן\")","v":3}]
[null,"קורס בחירה",{"$f":"IF(SUMIF(קורסים[דרישה],'נקודות זכות'!$B10,קורסים[נקודות זכות])=0,\"0\",SUMIF(קורסים[דרישה],'נקודות זכות'!$B10,קורסים[נקודות זכות]))","v":2},{"$f":"SUMIFS(קורסים[נקודות זכות],קורסים[דרישה],'נקודות זכות'!$B10,קורסים[הושלם],\"כן\")","v":2},{"$f":"SUMIF(קורסים[דרישה],'נקודות זכות'!$B10,קורסים[נקודות זכות])-SUMIFS(קורסים[נקודות זכות],קורסים[דרישה],'נקודות זכות'!$B10,קורסים[הושלם],\"כן\")","v":0}]
[null,"לימודים כלליים",{"$f":"IF(SUMIF(קורסים[דרישה],'נקודות זכות'!$B11,קורסים[נקודות זכות])=0,\"0\",SUMIF(קורסים[דרישה],'נקודות זכות'!$B11,קורסים[נקודות זכות]))","v":"0"},{"$f":"SUMIFS(קורסים[נקודות זכות],קורסים[דרישה],'נקודות זכות'!$B11,קורסים[הושלם],\"כן\")","v":0},{"$f":"SUMIF(קורסים[דרישה],'נקודות זכות'!$B11,קורסים[נקודות זכות])-SUMIFS(קורסים[נקודות זכות],קורסים[דרישה],'נקודות זכות'!$B11,קורסים[הושלם],\"כן\")","v":0}]
[null,"סך הכל",{"$f":"SUBTOTAL(109,'נקודות זכות'!$C$8:$C$11)","v":9},{"$f":"SUBTOTAL(109,'נקודות זכות'!$D$8:$D$11)","v":6},{"$f":"SUBTOTAL(109,'נקודות זכות'!$E$8:$E$11)","v":3}]
[null,"קורסים"]
[null,"כותרת הקורס","מס' קורס","דרישה","נקודות זכות","הושלם","ציון","סמסטר"]
[null,"קורס 1","מספר","חוג ראשי",4,"כן",{"v":4,"d":"4.0"},"סמסטר 1"]
[null,"קורס 2","מספר","חוג משני",3,"לא",null,"סמסטר 1"]
[null,"קורס 3","מספר","קורס בחירה",2,"כן",{"v":3,"d":"3.0"},"סמסטר 1"]

{"sheet":"תקציב","index":2,"n_rows":15,"n_cols":4,"rows_kept":15,"merged":[[5,1,5,2]]}
[null,{"$f":"בית_ספר","v":"בית ספר"}]
[null,"מעקב אחר תקציב"]
[null,"התקציב שלי",{"$f":"שנה","v":"שנה"}]
[null,"אחוז ההוצאות מתוך ההכנסות"]
[null,{"$f":"הוצאות_חודשיות_נטו/הכנסות_חודשיות_נטו","v":{"v":0.7454545454545455,"d":"₪ 1"}}]
[null,{"$f":"B5","v":0.7454545454545455}]
[null,"הכנסות חודשיות נטו","הוצאות חודשיות נטו","יתרה"]
[null,{"$f":"C10","v":{"v":2750,"d":"₪ 2,750"}},{"$f":"'הוצאות חודשיות נטו'!C4+'הוצאות בסמסטר'!D4","v":{"v":2050,"d":"₪ 2,050"}},{"$f":"הכנסות_חודשיות_נטו-הוצאות_חודשיות_נטו","v":{"v":700,"d":"₪ 700"}}]
[null,"חודשים בסמסטר",4]
[null,"הכנסות חודשיות",{"$f":"SUM(הכנסות_חודשיות[סכום])","v":{"v":2750,"d":"₪ 2,750"}}]
[null,"פריט","סכום"]
[null,"הכנסה קבועה",{"v":1500,"d":"₪ 1,500"}]
[null,"עזרה כספית",{"v":500,"d":"₪ 500"}]
[null,"הלוואות",{"v":500,"d":"₪ 500"}]
[null,"הכנסה אחרת",{"v":250,"d":"₪ 250"}]

{"sheet":"הוצאות חודשיות נטו","index":3,"n_rows":15,"n_cols":3,"rows_kept":15}
[null,{"$f":"בית_ספר","v":"בית ספר"}]
[null,"מעקב אחר תקציב"]
[null,"הוצאות חודשיות",{"$f":"שנה","v":"שנה"}]
[null,"הוצאות חודשיות",{"$f":"SUM(הוצאות_חודשיות[סכום])","v":{"v":1675,"d":"₪ 1,675"}}]
[null,"פריט","סכום"]
[null,"שכ\"ד",{"v":300,"d":"₪ 300"}]
[null,"שירותים ציבוריים",{"v":50,"d":"₪ 50"}]
[null,"טלפון נייד",{"v":75,"d":"₪ 75"}]
[null,"מצרכים",{"v":250,"d":"₪ 250"}]
[null,"הוצאות רכב",{"v":50,"d":"₪ 50"}]
[null,"הלוואות סטודנט",{"v":500,"d":"₪ 500"}]
[null,"כרטיסי אשראי",{"v":275,"d":"₪ 275"}]
[null,"ביטוח",{"v":125,"d":"₪ 125"}]
[null,"בידור",{"v":50,"d":"₪ 50"}]
[null,"שונות",{"v":0,"d":"₪ 0"}]

{"sheet":"הוצאות בסמסטר","index":4,"n_rows":11,"n_cols":4,"rows_kept":11}
[null,{"$f":"בית_ספר","v":"בית ספר"}]
[null,"מעקב אחר תקציב"]
[null,"הוצאות בסמסטר",{"$f":"שנה","v":"שנה"}]
[null,"הוצאות בסמסטר (סה\"כ לחודש)",{"$f":"SUM(הוצאות_בסמסטר[סכום])","v":{"v":1500,"d":"₪ 1,500"}},{"$f":"SUM(הוצאות_בסמסטר[לחודש])","v":{"v":375,"d":"₪ 375"}}]
[null,"פריט","סכום","לחודש"]
[null,"שכר לימוד",{"v":750,"d":"₪ 750"},{"$f":"הוצאות_בסמסטר[[#This Row],[סכום]]/חודשים_בסמסטר","v":{"v":187.5,"d":"₪ 188"}}]
[null,"עלויות מעבדה",{"v":250,"d":"₪ 250"},{"$f":"הוצאות_בסמסטר[[#This Row],[סכום]]/חודשים_בסמסטר","v":{"v":62.5,"d":"₪ 63"}}]
[null,"ספרים",{"v":500,"d":"₪ 500"},{"$f":"הוצאות_בסמסטר[[#This Row],[סכום]]/חודשים_בסמסטר","v":{"v":125,"d":"₪ 125"}}]
[null,"פיקדונות",{"v":0,"d":"₪ 0"},{"$f":"הוצאות_בסמסטר[[#This Row],[סכום]]/חודשים_בסמסטר","v":{"v":0,"d":"₪ 0"}}]
[null,"תחבורה",{"v":0,"d":"₪ 0"},{"$f":"הוצאות_בסמסטר[[#This Row],[סכום]]/חודשים_בסמסטר","v":{"v":0,"d":"₪ 0"}}]
[null,"עלויות אחרות",{"v":0,"d":"₪ 0"},{"$f":"הוצאות_בסמסטר[[#This Row],[סכום]]/חודשים_בסמסטר","v":{"v":0,"d":"₪ 0"}}]

{"sheet":"ספרים","index":5,"n_rows":7,"n_cols":7,"rows_kept":7}
[null,{"$f":"בית_ספר","v":"בית ספר"}]
[null,"מעקב אחר ספרים"]
[null,"רשימת ספרים"]
[null,"כותרת","מחבר","קורס","היכן לקנות?","ISBN","הערות"]
[null,"כותרת הספר","מחבר","קורס","מיקום","מספר"]
[null,"כותרת הספר","מחבר","קורס","מיקום","מספר"]
[null,"כותרת הספר","מחבר","קורס","מיקום","מספר"]